bitfinex-derivatives/quotes_BNBF0:USTF0_20250524
["timestamp","ask_amount","ask_price","bid_price","bid_amount"]
[1748072983164,0.29904306,668.8,667.87,1.16880653]
[1748072984068,0.29904306,668.8,667.88,1.16880653]
[1748072985272,0.29904306,668.8,667.89,1.16880653]
[1748072987274,0.29904306,668.8,667.9,1.16880653]
[1748072988275,0.29904306,668.8,667.91,1.16880653]
[1748072989678,0.29904306,668.8,667.92,1.16880653]
[1748072991177,0.29904306,668.8,667.93,1.16880653]
[1748072992180,0.29904306,668.8,667.94,1.16880653]
[1748072993481,0.29904306,668.8,667.95,1.16880653]
[1748072994683,0.29904306,668.8,667.96,1.16880653]
[1748072996098,0.29904306,668.8,667.8,1.16880653]
[1748072997886,0.29904306,668.8,667.81,2.28648825]
[1748072999082,0.29904306,668.8,667.82,1.16880653]
[1748073000389,0.29904306,668.8,667.83,2.28648825]
[1748073001483,0.29904306,668.8,667.84,1.16880653]
[1748073002890,0.29904306,668.8,667.87,1.11768172]
[1748073004189,0.29904306,668.8,667.88,1.16880653]
[1748073005390,0.29904306,668.8,667.89,2.28648825]
[1748073006987,0.29904306,668.8,667.9,1.16880653]
[1748073008393,0.29904306,668.8,667.91,1.16880653]
[1748073009695,0.29904306,668.8,667.92,1.16880653]
[1748073010592,0.29904306,668.8,667.93,1.16880653]
[1748073011597,0.29904306,668.8,667.94,1.16880653]
[1748073013195,0.29904306,668.8,667.95,1.16880653]
[1748073014199,0.29904306,668.8,667.96,1.16880653]
[1748073015501,0.29904306,668.8,667.97,1.16880653]
[1748073017103,0.29904306,668.8,667.98,1.16880653]
[1748073018303,0.29904306,668.8,667.99,1.16880653]
[1748073020007,0.29904306,668.8,668.0,1.16880653]
[1748073021308,0.29904306,668.8,668.01,1.16880653]
[1748073022708,0.29904306,668.8,668.02,1.16880653]
[1748073024111,0.29904306,668.8,668.03,1.16880653]
[1748073025610,0.29904306,668.8,668.04,1.16880653]
[1748073027112,0.29904306,668.8,668.09,1.11768172]
[1748073028013,0.29904306,668.8,668.1,1.16880653]
[1748073029311,0.29904306,668.8,668.11,1.16880653]
[1748073030412,0.29904306,668.8,668.12,1.16880653]
[1748073032411,0.29904306,668.8,668.13,1.16880653]
[1748073033612,0.29904306,668.8,668.14,1.16880653]
[1748073035710,0.29904306,668.8,668.15,1.16880653]
[1748073036714,0.29904306,668.8,668.16,1.16880653]
[1748073038716,0.29904306,668.8,668.17,1.16880653]
[1748073040119,0.29904306,668.8,668.18,1.16880653]
[1748073041828,0.29904306,668.8,668.19,1.16880653]
[1748073043019,0.29904306,668.8,668.2,1.16880653]
[1748073044319,0.29904306,668.8,668.06,1.16880653]
[1748073045917,0.29904306,668.8,668.07,1.16880653]
[1748073046824,0.29904306,668.8,668.08,1.16880653]
[1748073047920,0.29904306,668.8,668.09,1.16880653]
[1748073049025,0.29904306,668.8,668.1,1.16880653]
[1748073050327,0.29904306,668.8,668.11,1.16880653]
[1748073052022,0.29904306,668.8,668.12,1.16880653]
[1748073053424,0.29904306,668.8,668.13,1.16880653]
[1748073054631,0.29904306,668.8,668.14,1.16880653]
[1748073055828,0.29904306,668.8,668.15,1.16880653]
[1748073057141,0.29904306,668.8,668.16,1.16880653]
[1748073058538,0.29904306,668.8,668.17,1.16880653]
[1748073060639,0.29904306,668.8,668.18,1.16880653]
[1748073061938,0.29904306,668.8,668.19,1.16880653]
[1748073063038,0.29904306,668.8,668.2,1.16880653]
[1748073064739,0.29904306,668.8,668.21,1.16880653]
[1748073066135,0.29904306,668.8,668.22,1.16880653]
[1748073067640,0.29904306,668.8,668.04,1.16880653]
[1748073069536,0.29904306,668.8,668.1,1.11768172]
[1748073070743,0.29904306,668.8,668.11,1.16880653]
[1748073072040,0.29904306,668.8,668.12,1.16880653]
[1748073073146,0.29904306,668.8,668.13,1.16880653]
[1748073074649,0.29904306,668.8,668.14,1.16880653]
[1748073075848,0.29904306,668.8,668.15,1.16880653]
[1748073076944,0.29904306,668.8,668.16,1.16880653]
[1748073077951,0.29904306,668.8,668.17,1.16880653]
[1748073079553,0.29904306,668.8,668.18,1.16880653]
[1748073080653,0.29904306,668.8,668.19,1.16880653]
[1748073081453,0.29904306,668.8,668.2,1.16880653]
[1748073083255,0.29904306,668.8,668.21,1.16880653]
[1748073084456,0.29904306,668.8,668.22,1.16880653]
[1748073085657,0.29904306,668.8,668.23,1.16880653]
[1748073086857,0.29904306,668.8,668.24,1.16880653]
[1748073087755,0.29904306,668.8,668.25,1.16880653]
[1748073089358,0.29904306,668.8,668.26,1.16880653]
[1748073090662,0.29904306,668.8,668.27,1.16880653]
[1748073091961,0.29904306,668.8,668.28,1.16880653]
[1748073092966,0.29904306,668.8,668.29,1.16880653]
[1748073094768,0.29904306,668.8,668.3,1.16880653]
[1748073096271,0.29904306,668.8,668.31,1.16880653]
[1748073097771,0.29904306,668.8,668.32,1.16880653]
[1748073099574,0.29904306,668.8,668.33,1.16880653]
[1748073100573,0.29904306,668.8,668.34,1.16880653]
[1748073101669,0.29904306,668.8,668.35,1.16880653]
[1748073102669,0.29904306,668.8,668.36,1.16880653]
[1748073103876,0.29904306,668.8,668.02,1.16880653]
[1748073105478,0.29904306,668.8,668.03,1.16880653]
[1748073106778,0.29904306,668.8,668.04,1.16880653]
[1748073108779,0.29904306,668.8,668.05,1.16880653]
[1748073109579,0.29904306,668.8,668.06,1.16880653]
[1748073111084,0.29904306,668.8,668.07,1.16880653]
[1748073112082,0.29904306,668.8,668.08,1.16880653]
[1748073113184,0.29904306,668.8,668.09,1.16880653]
[1748073114586,0.29904306,668.8,667.91,1.16880653]
[1748073116186,0.29904306,668.8,667.92,1.16880653]
[1748073116983,0.29904306,668.8,667.93,1.16880653]
[1748073118791,0.29904306,668.8,667.8,1.16880653]
[1748073119795,0.29904306,668.8,667.81,1.16880653]
[1748073121294,0.29904306,668.8,667.69,1.16880653]
[1748073122094,0.29904306,668.8,667.7,1.16880653]
[1748073123593,0.29904306,668.8,667.71,1.16880653]
[1748073124995,0.29904306,668.8,667.72,1.16880653]
[1748073125987,0.29904306,668.8,667.73,1.16880653]
[1748073127394,0.29904306,668.8,667.74,1.16880653]
[1748073129198,0.29904306,668.8,667.75,1.16880653]
[1748073130093,0.29904306,668.8,667.65,1.16880653]
[1748073131299,0.29904306,668.8,667.66,1.16880653]
[1748073132498,0.29904306,668.8,667.67,1.16880653]
[1748073134494,0.29904306,668.8,667.6,1.16880653]
[1748073135902,0.29904306,668.8,667.45,1.16880653]
[1748073137402,0.29904306,668.8,667.46,1.16880653]
[1748073138802,0.29904306,668.8,667.47,1.16880653]
[1748073139804,0.29904306,668.8,667.48,1.16880653]
[1748073141098,0.29904306,668.8,667.49,1.16880653]
[1748073142197,0.29904306,668.8,666.49,3.96403172]
[1748073142198,0.29904306,668.8,667.5,1.16880653]
[1748073143402,0.29904306,668.8,667.51,1.16880653]
[1748073144805,0.29904306,668.8,667.52,1.16880653]
[1748073146105,0.29904306,668.8,667.53,1.16880653]
[1748073147106,0.29904306,668.8,667.54,1.16880653]
[1748073148707,0.29904306,668.8,667.55,1.16880653]
[1748073150106,0.29904306,668.8,667.56,1.16880653]
[1748073150608,0.29904306,668.8,667.57,1.16880653]
[1748073152103,0.29904306,668.8,667.58,1.16880653]
[1748073152911,0.29904306,668.8,667.59,1.16880653]
[1748073154312,0.29904306,668.8,667.6,1.16880653]
[1748073155813,0.29904306,668.8,667.61,1.16880653]
[1748073157614,0.29904306,668.8,667.62,1.16880653]
[1748073158917,0.29904306,668.8,667.63,1.16880653]
[1748073160011,0.29904306,668.8,667.64,1.16880653]
[1748073160916,0.29904306,668.8,667.41,1.16880653]
[1748073162519,0.29904306,668.8,667.42,1.16880653]
[1748073163918,0.29904306,668.8,667.43,1.16880653]
[1748073165019,0.29904306,668.8,667.44,1.16880653]
[1748073166319,0.29904306,668.8,667.45,1.16880653]
[1748073167721,0.29904306,668.8,667.46,2.28648825]
[1748073168820,0.29904306,668.8,667.47,1.16880653]
[1748073169817,0.29904306,668.8,667.48,1.16880653]
[1748073171124,0.29904306,668.8,667.49,1.16880653]
[1748073172226,0.29904306,668.8,667.5,1.16880653]
[1748073172926,0.29904306,668.8,667.51,1.16880653]
[1748073174726,0.29904306,668.8,667.52,1.16880653]
[1748073175830,0.29904306,668.8,667.53,1.16880653]
[1748073177531,0.29904306,668.8,667.54,1.16880653]
[1748073178933,0.29904306,668.8,667.55,1.16880653]
[1748073181137,0.29904306,668.8,666.55,3.7036209]
[1748073181138,0.29904306,668.8,667.56,1.16880653]
[1748073182135,0.29904306,668.8,667.57,1.16880653]
[1748073183336,0.29904306,668.8,667.58,1.16880653]
[1748073184434,0.29904306,668.8,667.59,1.16880653]
[1748073185636,0.29904306,668.8,667.6,1.16880653]
[1748073186838,0.29904306,668.8,667.61,1.16880653]
[1748073188535,0.29904306,668.8,667.61,2.28648825]
[1748073188739,0.29904306,668.8,667.62,1.16880653]
[1748073189944,0.29904306,668.8,667.63,1.16880653]
[1748073192245,0.29904306,668.8,667.61,1.11768172]
[1748073192246,0.29904306,668.8,667.64,1.16880653]
[1748073193545,0.29904306,668.8,667.65,1.16880653]
[1748073194547,0.29904306,668.8,667.66,1.16880653]
[1748073195748,0.29904306,668.8,667.67,1.16880653]
[1748073197250,0.29904306,668.8,667.68,1.16880653]
[1748073198646,0.29904306,668.8,667.69,1.16880653]
[1748073200052,0.29904306,668.8,667.7,1.16880653]
[1748073200950,0.29904306,668.8,667.71,1.16880653]
[1748073203158,0.29904306,668.8,667.72,1.16880653]
[1748073204059,0.29904306,668.8,667.73,1.16880653]
[1748073205961,0.29904306,668.8,667.74,1.16880653]
[1748073207562,0.29904306,668.8,667.75,1.16880653]
[1748073208965,0.29904306,668.8,667.76,1.16880653]
[1748073210168,0.29904306,668.8,667.77,1.16880653]
[1748073211269,0.29904306,668.8,667.78,1.16880653]
[1748073212467,0.29904306,668.8,667.79,1.16880653]
[1748073213875,0.29904306,668.8,667.63,1.16880653]
[1748073214872,0.29904306,668.8,667.64,1.16880653]
[1748073216374,0.29904306,668.8,667.65,1.16880653]
[1748073217876,0.29904306,668.8,667.66,1.16880653]
[1748073219578,0.29904306,668.8,667.67,1.16880653]
[1748073220778,0.29904306,668.8,667.68,1.16880653]
[1748073222879,0.29904306,668.8,667.69,1.16880653]
[1748073223782,0.29904306,668.8,667.7,1.16880653]
[1748073225385,0.29904306,668.8,667.71,1.16880653]
[1748073226584,0.29904306,668.8,667.72,1.16880653]
[1748073228184,0.29904306,668.8,667.73,1.16880653]
[1748073228890,0.29904306,668.8,667.74,1.16880653]
[1748073230090,0.29904306,668.8,667.75,1.16880653]
[1748073231290,0.29904306,668.8,667.76,1.16880653]
[1748073232887,0.29904306,668.8,667.77,1.16880653]
[1748073234190,0.29904306,668.8,667.78,1.16880653]
[1748073235594,0.29904306,668.8,667.79,1.16880653]
[1748073236796,0.29904306,668.8,667.8,1.16880653]
[1748073238091,0.29904306,668.8,667.81,1.16880653]
[1748073238995,0.29904306,668.8,667.82,1.16880653]
[1748073240896,0.29904306,668.8,667.83,1.16880653]
[1748073242297,0.29904306,668.8,667.84,1.16880653]
[1748073243594,0.29904306,668.8,667.85,1.16880653]
[1748073244300,0.29904306,668.8,667.73,1.11768172]
[1748073244301,0.29904306,668.8,667.86,1.16880653]
[1748073245402,0.29904306,668.8,667.87,1.16880653]
[1748073246602,0.29904306,668.8,667.88,1.16880653]
[1748073247704,0.29904306,668.8,667.89,1.16880653]
[1748073249305,0.29904306,668.8,667.73,1.16880653]
[1748073249908,0.26039426,668.54,667.73,1.16880653]
[1748073250107,0.29916383,668.53,667.73,1.16880653]
[1748073250607,0.29916383,668.53,667.74,1.16880653]
[1748073251706,0.29916383,668.53,667.75,1.16880653]
[1748073253706,0.29916383,668.53,667.76,1.16880653]
[1748073254806,0.29916383,668.53,667.77,1.16880653]
[1748073255412,0.29916383,668.53,667.78,1.16880653]
[1748073256413,0.29916383,668.53,667.57,1.16880653]
[1748073258013,0.29916383,668.53,667.58,1.16880653]
[1748073259311,0.29916383,668.53,667.59,1.16880653]
[1748073260718,0.29916383,668.53,667.6,1.16880653]
[1748073262122,0.29916383,668.53,667.61,1.16880653]
[1748073263319,0.29916383,668.53,667.62,1.16880653]
[1748073264318,0.29916383,668.53,667.63,1.16880653]
[1748073265521,0.29916383,668.53,667.64,1.16880653]
[1748073267122,0.29916383,668.53,667.65,1.16880653]
[1748073268623,0.29916383,668.53,667.66,1.16880653]
[1748073269524,0.29916383,668.53,667.67,1.16880653]
[1748073270927,0.29916383,668.53,667.68,1.16880653]
[1748073272126,0.29916383,668.53,667.56,1.11768172]
[1748073272127,0.29916383,668.53,667.69,1.16880653]
[1748073273326,0.29916383,668.53,667.7,1.16880653]
[1748073275226,0.29916383,668.53,667.71,1.16880653]
[1748073276526,0.29916383,668.53,667.72,1.16880653]
[1748073278520,0.29916383,668.53,667.73,1.16880653]
[1748073280128,0.29916383,668.53,667.74,1.16880653]
[1748073281428,0.29916383,668.53,667.75,1.16880653]
[1748073282529,0.29916383,668.53,667.76,1.16880653]
[1748073283834,0.29916383,668.53,667.77,1.16880653]
[1748073284933,0.29916383,668.53,667.78,1.16880653]
[1748073286133,0.29916383,668.53,667.79,1.16880653]
[1748073287427,0.29916383,668.53,667.8,1.16880653]
[1748073289236,0.29916383,668.53,667.81,1.16880653]
[1748073290735,0.29916383,668.53,667.82,1.16880653]
[1748073291630,0.29916383,668.53,667.83,1.16880653]
[1748073292634,0.29916383,668.53,667.84,1.16880653]
[1748073293834,0.29916383,668.53,667.85,1.16880653]
[1748073295038,0.29916383,668.53,667.86,1.16880653]
[1748073295932,0.29916383,668.53,667.87,1.16880653]
[1748073297235,0.29916383,668.53,667.88,1.16880653]
[1748073298442,0.29916383,668.53,667.89,1.16880653]
[1748073299742,0.29916383,668.53,667.9,1.16880653]
[1748073300843,0.29916383,668.53,667.91,1.16880653]
[1748073302039,0.29916383,668.53,667.92,1.16880653]
[1748073303346,0.29916383,668.53,667.93,1.16880653]
[1748073304848,0.29916383,668.53,667.94,1.16880653]
[1748073306248,0.29916383,668.53,667.95,1.16880653]
[1748073307349,0.29916383,668.53,667.96,1.16880653]
[1748073308652,0.29916383,668.53,667.51,1.16880653]
[1748073310052,0.29916383,668.53,667.52,1.16880653]
[1748073311454,0.29916383,668.53,667.53,1.16880653]
[1748073312756,0.29916383,668.53,667.54,2.28648825]
[1748073313751,0.29916383,668.53,667.55,1.16880653]
[1748073315253,0.29916383,668.53,667.56,1.16880653]
[1748073316557,0.29916383,668.53,667.57,1.16880653]
[1748073318162,0.29916383,668.53,667.58,1.16880653]
[1748073319257,0.29916383,668.53,667.52,1.11768172]
[1748073319258,0.29916383,668.53,667.59,1.16880653]
[1748073320766,0.29916383,668.53,667.6,1.16880653]
[1748073322065,0.29916383,668.53,667.61,1.16880653]
[1748073323567,0.29916383,668.53,667.62,1.16880653]
[1748073324167,0.29916383,668.53,667.51,1.16880653]
[1748073325365,0.29916383,668.53,667.52,1.16880653]
[1748073326370,0.29916383,668.53,667.53,1.16880653]
[1748073327969,0.29916383,668.53,667.54,1.16880653]
[1748073329172,0.29916383,668.53,667.55,1.16880653]
[1748073330574,0.29916383,668.53,667.48,1.11768172]
[1748073330575,0.29916383,668.53,667.56,1.16880653]
[1748073331675,0.29916383,668.53,667.57,1.16880653]
[1748073333271,0.29916383,668.53,667.58,1.16880653]
[1748073334376,0.29916383,668.53,667.59,1.16880653]
[1748073335676,0.29916383,668.53,667.6,1.16880653]
[1748073336677,0.29916383,668.53,667.61,1.16880653]
[1748073337980,0.29916383,668.53,667.62,1.16880653]
[1748073339382,0.29916383,668.53,667.63,1.16880653]
[1748073340883,0.29916383,668.53,667.46,1.16880653]
[1748073342384,0.29916383,668.53,667.47,1.16880653]
[1748073343584,0.29916383,668.53,667.48,1.16880653]
[1748073344985,0.29916383,668.53,667.49,1.16880653]
[1748073346085,0.29916383,668.53,667.5,1.16880653]
[1748073347485,0.29916383,668.53,667.51,1.16880653]
[1748073348787,0.29916383,668.53,667.53,1.11768172]
[1748073349384,0.29916383,668.53,667.54,1.16880653]
[1748073350785,0.29916383,668.53,667.55,1.16880653]
[1748073352186,0.29916383,668.53,667.56,1.16880653]
[1748073353187,0.29916383,668.53,667.57,1.16880653]
[1748073354288,0.29916383,668.53,667.58,1.16880653]
[1748073356194,0.29916383,668.53,667.59,1.16880653]
[1748073357297,0.29916383,668.53,667.6,1.16880653]
[1748073358396,0.29916383,668.53,667.65,1.11768172]
[1748073359596,0.29916383,668.53,667.66,1.16880653]
[1748073360397,0.29916383,668.53,667.73,1.11768172]
[1748073361701,0.29916383,668.53,667.74,1.16880653]
[1748073363604,0.29916383,668.53,667.8,1.11768172]
[1748073364501,0.29916383,668.53,667.81,1.16880653]
[1748073366401,0.29916383,668.53,667.82,1.16880653]
[1748073367602,0.29916383,668.53,667.83,1.16880653]
[1748073369006,0.29916383,668.53,667.84,1.16880653]
[1748073369905,0.29916383,668.53,667.85,1.16880653]
[1748073371605,0.29916383,668.53,667.86,1.16880653]
[1748073372505,0.29916383,668.53,667.87,1.16880653]
[1748073373907,0.29916383,668.53,667.88,1.16880653]
[1748073374900,0.29916383,668.53,667.89,1.16880653]
[1748073376605,0.29916383,668.53,667.9,1.16880653]
[1748073377708,0.29916383,668.53,667.91,1.16880653]
[1748073379409,0.29916383,668.53,667.64,1.48144836]
[1748073379410,0.29916383,668.53,667.92,1.16880653]
[1748073380413,0.29916383,668.53,667.93,1.16880653]
[1748073381413,0.29916383,668.53,667.94,1.16880653]
[1748073382713,0.29916383,668.53,667.95,1.16880653]
[1748073384316,0.29916383,668.53,667.96,1.16880653]
[1748073385114,0.29916383,668.53,667.97,1.16880653]
[1748073386517,0.29916383,668.53,667.98,1.16880653]
[1748073387916,0.29916383,668.53,667.99,1.16880653]
[1748073388315,3.71709254,669.64,667.99,1.16880653]
[1748073388516,0.29867686,669.62,667.99,1.16880653]
[1748073388713,0.26025697,669.1,667.99,1.16880653]
[1748073388913,0.29891344,669.09,667.99,1.16880653]
[1748073389819,0.29891344,669.09,668.04,1.11768172]
[1748073391120,0.29891344,669.09,668.05,1.16880653]
[1748073392921,0.29891344,669.09,667.75,2.22217254]
[1748073392922,0.29891344,669.09,668.06,1.16880653]
[1748073394120,0.29891344,669.09,668.07,1.16880653]
[1748073395623,0.29891344,669.09,668.08,1.16880653]
[1748073396825,0.29891344,669.09,668.09,1.16880653]
[1748073398626,0.29891344,669.09,668.1,1.16880653]
[1748073399622,0.29891344,669.09,668.11,1.16880653]
[1748073401227,0.29891344,669.09,668.12,1.16880653]
[1748073401923,0.29891344,669.09,668.13,1.16880653]
[1748073403227,0.29891344,669.09,668.14,1.16880653]
[1748073404128,0.29891344,669.09,668.15,1.16880653]
[1748073405230,0.29891344,669.09,668.16,1.16880653]
[1748073406733,0.29891344,669.09,668.17,1.16880653]
[1748073407833,0.29891344,669.09,668.18,1.16880653]
[1748073409434,0.29891344,669.09,668.19,1.16880653]
[1748073410934,0.29891344,669.09,668.2,1.16880653]
[1748073411635,0.29891344,669.09,668.21,1.16880653]
[1748073413137,0.29891344,669.09,668.22,1.16880653]
[1748073414941,0.29891344,669.09,668.23,1.16880653]
[1748073416745,0.29891344,669.09,667.97,1.11768172]
[1748073418244,0.29891344,669.09,667.98,1.1694482]
[1748073419546,0.29891344,669.09,668.0,1.11768172]
[1748073420748,0.29891344,669.09,668.01,1.1694482]
[1748073422046,0.29891344,669.09,668.02,1.1694482]
[1748073423248,0.29891344,669.09,668.03,1.1694482]
[1748073424651,0.29891344,669.09,668.04,1.1694482]
[1748073425850,0.29891344,669.09,668.05,1.1694482]
[1748073427153,0.29891344,669.09,668.06,1.1694482]
[1748073428453,0.29891344,669.09,668.07,1.1694482]
[1748073429750,0.29891344,669.09,668.08,1.1694482]
[1748073430555,0.29891344,669.09,668.09,1.1694482]
[1748073432055,0.29891344,669.09,668.1,1.1694482]
[1748073433155,0.29891344,669.09,668.07,1.1694482]
[1748073436159,0.29891344,669.09,667.93,1.1694482]
[1748073437258,0.29891344,669.09,667.94,1.1694482]
[1748073438355,0.29891344,669.09,667.95,1.1694482]
[1748073440262,0.29891344,669.09,667.96,1.1694482]
[1748073441561,0.29891344,669.09,667.97,1.1694482]
[1748073443064,0.29891344,669.09,667.98,1.1694482]
[1748073444568,0.29891344,669.09,667.99,1.1694482]
[1748073445872,0.29891344,669.09,668.0,1.1694482]
[1748073447172,0.29891344,669.09,668.01,1.1694482]
[1748073449074,0.29891344,669.09,668.02,1.1694482]
[1748073450377,0.29891344,669.09,668.03,1.1694482]
[1748073451775,0.29891344,669.09,667.91,1.11768172]
[1748073452575,0.29891344,669.09,667.92,1.1694482]
[1748073454075,0.29891344,669.09,667.93,2.28712992]
[1748073455277,0.29891344,669.09,667.94,1.1694482]
[1748073456278,0.29891344,669.09,667.95,1.1694482]
[1748073457578,0.29891344,669.09,667.96,1.1694482]
[1748073458677,0.29891344,669.09,667.97,1.1694482]
[1748073459782,0.29891344,669.09,667.87,1.11768172]
[1748073461482,0.29891344,669.09,667.63,1.11768172]
[1748073462887,0.29891344,669.09,667.63,2.28712992]
[1748073464281,0.29891344,669.09,667.64,1.1694482]
[1748073465384,0.29891344,669.09,667.65,1.1694482]
[1748073466584,0.29891344,669.09,667.4,1.11768172]
[1748073466585,0.29891344,669.09,667.66,1.1694482]
[1748073467281,0.29891344,669.09,667.45,1.11768172]
[1748073468482,0.29891344,669.09,667.46,1.1086085]
[1748073468483,3.71709254,668.94,667.46,1.1086085]
[1748073468688,0.29898941,668.92,667.46,1.1086085]
[1748073469489,0.29898941,668.92,667.47,1.1086085]
[1748073470887,0.29898941,668.92,667.48,1.1086085]
[1748073471885,0.29898941,668.92,667.49,1.1086085]
[1748073473289,0.29898941,668.92,667.5,1.1086085]
[1748073474192,0.29898941,668.92,667.51,1.1086085]
[1748073475088,0.29898941,668.92,667.52,1.1086085]
[1748073476087,0.29898941,668.92,667.53,1.1086085]
[1748073477192,0.29898941,668.92,667.54,1.1086085]
[1748073477989,0.29898941,668.92,667.55,1.1086085]
[1748073479796,0.29898941,668.92,667.32,1.11768172]
[1748073479797,0.29898941,668.92,667.56,1.1086085]
[1748073481498,0.29898941,668.92,667.57,1.1086085]
[1748073482399,0.29898941,668.92,667.58,1.1086085]
[1748073483300,0.29898941,668.92,667.59,1.1086085]
[1748073484500,0.29898941,668.92,667.6,1.1086085]
[1748073485601,0.29898941,668.92,667.61,1.1086085]
[1748073487302,0.29898941,668.92,667.3,1.11768172]
[1748073488699,0.29898941,668.92,667.31,1.1072848]
[1748073489905,0.29898941,668.92,667.32,1.1072848]
[1748073491205,0.29898941,668.92,667.33,1.1072848]
[1748073492601,0.29898941,668.92,667.34,1.1072848]
[1748073493506,0.29898941,668.92,667.35,1.1072848]
[1748073494908,0.29898941,668.92,667.36,1.1072848]
[1748073495708,0.29898941,668.92,667.25,1.1072848]
[1748073497008,0.29898941,668.92,667.26,2.22496652]
[1748073497813,0.29898941,668.92,667.27,1.1072848]
[1748073499115,0.29898941,668.92,667.28,1.1072848]
[1748073500415,0.29898941,668.92,667.29,1.1072848]
[1748073502215,0.29898941,668.92,667.3,1.1072848]
[1748073503316,0.29898941,668.92,667.31,1.1072848]
[1748073504417,0.29898941,668.92,667.32,1.1072848]
[1748073505518,0.29898941,668.92,667.33,1.1072848]
[1748073507223,0.29898941,668.92,667.38,1.11768172]
[1748073508419,0.29898941,668.92,667.39,1.1072848]
[1748073509821,0.29898941,668.92,667.35,1.11768172]
[1748073510922,0.29898941,668.92,667.36,1.1072848]
[1748073512821,0.29898941,668.92,667.36,2.22496652]
[1748073513622,0.29898941,668.92,667.36,1.11768172]
[1748073514823,0.29898941,668.92,667.37,1.1072848]
[1748073516521,0.29898941,668.92,667.38,1.1072848]
[1748073518631,0.29898941,668.92,667.44,1.11768172]
[1748073520030,0.29898941,668.92,667.45,1.1072848]
[1748073521630,0.29898941,668.92,667.6,1.11768172]
[1748073522631,0.29898941,668.92,667.61,1.1072848]
[1748073524131,0.29898941,668.92,667.62,1.1072848]
[1748073525133,0.29898941,668.92,667.63,1.1072848]
[1748073526433,0.29898941,668.92,667.65,1.11768172]
[1748073527429,0.29898941,668.92,667.66,1.1072848]
[1748073528934,0.29898941,668.92,667.67,1.1072848]
[1748073530036,0.29898941,668.92,667.68,1.1072848]
[1748073531532,0.29898941,668.92,667.69,1.1072848]
[1748073532839,0.29898941,668.92,667.7,1.1072848]
[1748073534542,0.29898941,668.92,667.6,1.1072848]
[1748073535439,0.29898941,668.92,667.55,1.11768172]
[1748073535440,0.29898941,668.92,667.61,1.1072848]
[1748073536339,0.29898941,668.92,667.62,1.1072848]
[1748073537440,0.29898941,668.92,667.63,1.1072848]
[1748073538640,0.29898941,668.92,667.64,1.1072848]
[1748073539741,0.29898941,668.92,667.65,1.1072848]
[1748073541140,0.29898941,668.92,667.66,1.1072848]
[1748073541940,0.29898941,668.92,667.61,1.1072848]
[1748073543645,0.29898941,668.92,667.62,1.1072848]
[1748073545246,0.29898941,668.92,667.63,1.1072848]
[1748073546940,0.29898941,668.92,667.7,1.11768172]
[1748073548247,0.29898941,668.92,667.71,1.1072848]
[1748073552049,0.29898941,668.92,666.58,3.7036209]
[1748073552050,0.29898941,668.92,667.8,1.11768172]
[1748073553149,0.29898941,668.92,667.81,1.1072848]
[1748073554949,0.29898941,668.92,667.85,1.11768172]
[1748073555852,0.29898941,668.92,667.86,1.1072848]
[1748073557458,0.29898941,668.92,667.9,1.11768172]
[1748073558154,0.29898941,668.92,667.91,1.1072848]
[1748073559557,0.29898941,668.92,667.98,1.11768172]
[1748073560854,0.29898941,668.92,667.99,1.1072848]
[1748073561958,0.29898941,668.92,668.0,1.1072848]
[1748073562857,0.29898941,668.92,668.01,1.1072848]
[1748073564356,0.29898941,668.92,668.02,1.1072848]
[1748073565655,0.29898941,668.92,668.03,1.1072848]
[1748073567058,0.29898941,668.92,668.04,1.1072848]
[1748073568258,0.29898941,668.92,668.05,1.1072848]
[1748073569760,0.29898941,668.92,668.02,1.1072848]
[1748073570861,0.29898941,668.92,668.03,1.1072848]
[1748073572662,0.29898941,668.92,668.04,1.1072848]
[1748073574065,0.29898941,668.92,667.87,1.1072848]
[1748073575166,0.29898941,668.92,667.88,1.1072848]
[1748073576264,0.29898941,668.92,667.89,1.1072848]
[1748073577567,0.29898941,668.92,667.87,1.1072848]
[1748073578364,0.29898941,668.92,667.84,1.1072848]
[1748073579465,0.29898941,668.92,667.85,1.1072848]
[1748073580469,0.29898941,668.92,667.86,1.1072848]
[1748073582174,0.29898941,668.92,667.82,2.22496652]
[1748073583374,0.29898941,668.92,667.83,1.1072848]
[1748073584478,0.29898941,668.92,667.84,1.1072848]
[1748073585875,0.29898941,668.92,667.85,1.1072848]
[1748073586777,0.29898941,668.92,667.86,1.1072848]
[1748073587772,0.29898941,668.92,667.87,1.1072848]
[1748073589677,0.29898941,668.92,667.88,1.1072848]
[1748073591177,0.29898941,668.92,667.79,1.1072848]
[1748073592383,0.29898941,668.92,667.66,1.11768172]
[1748073593379,0.29898941,668.92,667.67,1.1072848]
[1748073594586,0.29898941,668.92,667.68,1.1072848]
[1748073595487,0.29898941,668.92,667.69,1.1072848]
[1748073597193,0.29898941,668.92,667.7,1.1072848]
[1748073598394,0.29898941,668.92,667.71,1.1072848]
[1748073599895,0.29898941,668.92,667.72,1.1072848]
[1748073600688,0.29898941,668.92,667.73,1.14379683]
[1748073603193,0.29898941,668.92,667.74,1.14379683]
[1748073604292,0.29898941,668.92,667.75,1.14379683]
[1748073606900,0.29898941,668.92,667.76,1.14379683]
[1748073608101,0.29898941,668.92,667.77,1.14379683]
[1748073609204,0.29898941,668.92,667.72,1.11675885]
[1748073609205,0.29898941,668.92,667.78,1.14379683]